fUST/lending_fUST_20241204
["ID","MTS","AMOUNT","RATE_DAILY","PERIOD"]
[344112751,1733277039272,-500.0,0.00030136,7]
[344112753,1733277039281,-500.0,0.00030136,7]
[344112755,1733277039290,-500.0,0.00030136,7]
[344112756,1733277039299,-500.0,0.00030136,7]
[344112758,1733277039309,-415.52715761,0.00030136,7]
[344112761,1733277039318,-500.0,0.00030136,7]
[344112763,1733277039327,-500.0,0.00030136,7]
[344112764,1733277039337,-500.0,0.00030136,7]
[344112766,1733277039346,-504.30940248,0.00030136,7]
[344112768,1733277039356,-500.0,0.00030136,7]
[344112770,1733277039365,-500.52726905,0.00030136,7]
[344112772,1733277039374,-500.0,0.00030136,7]
[344112774,1733277039384,-500.0,0.00030136,7]
[344112776,1733277039393,-500.0,0.00030136,7]
[344112778,1733277039402,-500.38623356,0.00030136,7]
[344112780,1733277039411,-500.0,0.00030136,7]
[344112782,1733277039420,-537.21675938,0.00030136,7]
[344112784,1733277039430,-500.0,0.00030136,7]
[344112786,1733277039439,-500.0,0.00030136,7]
[344112788,1733277039448,-401.08401101,0.00030136,7]
[344112790,1733277039458,-500.0,0.00030136,7]
[344112792,1733277039470,-500.0,0.00030136,7]
[344112794,1733277039479,-500.0,0.00030136,7]
[344112796,1733277039488,-500.0,0.00030136,7]
[344112799,1733277039498,-500.0,0.00030136,7]
[344112802,1733277039509,-500.0,0.00030136,7]
[344112804,1733277039518,-500.0,0.00030136,7]
[344112808,1733277039528,-182.93341813,0.00030136,7]
[344112810,1733277039539,-500.0,0.00030136,7]
[344112811,1733277039548,-500.0,0.00030136,7]
[344112813,1733277039558,-500.0,0.00030136,7]
[344112815,1733277039567,-500.0,0.00030136,7]
[344112817,1733277039577,-500.0,0.00030136,7]
[344112819,1733277039586,-572.94619358,0.00030136,7]
[344112821,1733277039596,-500.0,0.00030136,7]
[344112823,1733277039605,-500.0,0.00030136,7]
[344112825,1733277039615,-500.0,0.00030136,7]
[344112827,1733277039624,-500.0,0.00030136,7]
[344112829,1733277039633,-500.0,0.00030136,7]
[344112831,1733277039643,-500.0,0.00030136,7]
[344112833,1733277039653,-500.0,0.00030136,7]
[344112835,1733277039662,-488.2749997,0.00030136,7]
[344112837,1733277039671,-500.0,0.00030136,7]
[344112839,1733277039681,-500.0,0.00030136,7]
[344112841,1733277039691,-516.56429695,0.00030136,7]
[344112843,1733277039701,-500.0,0.00030136,7]
[344112845,1733277039715,-500.0,0.00030136,7]
[344112847,1733277039724,-500.0,0.00030136,7]
[344112849,1733277039733,-500.0,0.00030136,7]
[344112851,1733277039743,-500.0,0.00030136,7]
[344112853,1733277039754,-500.0,0.00030136,7]
[344112855,1733277039764,-500.0,0.00030136,7]
[344112857,1733277039774,-500.0,0.00030136,7]
[344112859,1733277039783,-500.0,0.00030136,7]
[344112861,1733277039793,-214.18,0.00030136,7]
[344112863,1733277039803,-500.0,0.00030136,7]
[344112865,1733277039812,-500.0,0.00030136,7]
[344112867,1733277039822,-500.0,0.00030136,7]
[344112869,1733277039831,-500.0,0.00030136,7]
[344112871,1733277039840,-500.0,0.00030136,7]
[344112873,1733277039850,-500.0,0.00030136,7]
[344112875,1733277039859,-500.0,0.00030136,7]
[344112877,1733277039870,-500.0,0.00030136,7]
[344112879,1733277039879,-500.0,0.00030136,7]
[344112881,1733277039888,-500.0,0.00030136,7]
[344112883,1733277039898,-500.0,0.00030136,7]
[344112885,1733277039907,-253.53,0.00030136,7]
[344112887,1733277039916,-500.0,0.00030136,7]
[344112889,1733277039926,-500.0,0.00030136,7]
[344112891,1733277039935,-259.68172115,0.00030136,7]
[344112893,1733277039944,-500.0,0.00030136,7]
[344112895,1733277039954,-500.0,0.00030136,7]
[344112897,1733277039968,-500.0,0.00030136,7]
[344112899,1733277039978,-500.0,0.00030136,7]
[344112901,1733277039987,-500.0,0.00030136,7]
[344112903,1733277039996,-500.0,0.00030136,7]
[344112905,1733277040006,-500.0,0.00030136,7]
[344112907,1733277040015,-500.0,0.00030136,7]
[344112909,1733277040024,-500.0,0.00030136,7]
[344112911,1733277040034,-500.0,0.00030136,7]
[344112913,1733277040043,-517.53321993,0.00030136,7]
[344112915,1733277040052,-500.0,0.00030136,7]
[344112917,1733277040061,-500.0,0.00030136,7]
[344112919,1733277040070,-500.0,0.00030136,7]
[344112921,1733277040079,-500.0,0.00030136,7]
[344112923,1733277040090,-500.0,0.00030136,7]
[344112925,1733277040102,-500.0,0.00030136,7]
[344112928,1733277040111,-500.0,0.00030136,7]
[344112931,1733277040120,-500.0,0.00030136,7]
[344112934,1733277040129,-500.0,0.00030136,7]
[344112936,1733277040141,-257.25,0.00030136,7]
[344112938,1733277040151,-500.0,0.00030136,7]
[344112940,1733277040160,-500.0,0.00030136,7]
[344112942,1733277040170,-500.0,0.00030136,7]
[344112944,1733277040179,-500.0,0.00030136,7]
[344112946,1733277040188,-500.0,0.00030136,7]
[344112948,1733277040198,-505.07990665,0.00030136,7]
[344112950,1733277040208,-500.0,0.00030136,7]
[344112951,1733277040219,-500.0,0.00030136,7]
[344112953,1733277040229,-505.35697262,0.00030136,7]
[344112955,1733277040238,-500.0,0.00030136,7]
[344112957,1733277040247,-500.0,0.00030136,7]
[344112959,1733277040257,-500.0,0.00030136,7]
[344112961,1733277040266,-260.03343544,0.00030136,7]
[344112964,1733277040275,-500.0,0.00030136,7]
[344112965,1733277040285,-500.0,0.00030136,7]
[344112967,1733277040294,-500.0,0.00030136,7]
[344112970,1733277040303,-500.0,0.00030136,7]
[344112971,1733277040313,-500.0,0.00030136,7]
[344112973,1733277040322,-500.0,0.00030136,7]
[344112975,1733277040331,-500.0,0.00030136,7]
[344112977,1733277040340,-500.0,0.00030136,7]
[344112979,1733277040349,-500.0,0.00030136,7]
[344112981,1733277040359,-500.0,0.00030136,7]
[344112983,1733277040368,-500.0,0.00030136,7]
[344112985,1733277040378,-500.0,0.00030136,7]
[344112987,1733277040387,-500.0,0.00030136,7]
[344112989,1733277040396,-161.25,0.00030136,7]
[344112991,1733277040405,-500.0,0.00030136,7]
[344112993,1733277040415,-500.0,0.00030136,7]
[344112995,1733277040425,-500.0,0.00030136,7]
[344112997,1733277040435,-500.0,0.00030136,7]
[344112999,1733277040444,-500.0,0.00030136,7]
[344113001,1733277040453,-504.28882652,0.00030136,7]
[344113003,1733277040467,-500.0,0.00030136,7]
[344113005,1733277040477,-500.0,0.00030136,7]
[344113007,1733277040486,-500.0,0.00030136,7]
[344113009,1733277040495,-500.0,0.00030136,7]
[344113011,1733277040505,-500.0,0.00030136,7]
[344113013,1733277040515,-500.0,0.00030136,7]
[344113015,1733277040524,-500.0,0.00030136,7]
[344113017,1733277040533,-500.0,0.00030136,7]
[344113019,1733277040543,-500.0,0.00030136,7]
[344113021,1733277040552,-500.0,0.00030136,7]
[344113023,1733277040562,-500.0,0.00030136,7]
[344113025,1733277040571,-500.0,0.00030136,7]
[344113027,1733277040581,-500.0,0.00030136,7]
[344113029,1733277040590,-2547.43,0.00030136,7]
[344113031,1733277040599,-2547.43,0.00030136,7]
[344113033,1733277040608,-500.0,0.00030136,7]
[344113035,1733277040617,-500.0,0.00030136,7]
[344113037,1733277040627,-1192.54322471,0.00030136,7]
[344113071,1733277040933,-1354.88677529,0.00030136,7]
[344113072,1733277040942,-1926.18864986,0.00030136,7]
[344113077,1733277040978,-32.08420079,0.00030136,7]
[344113083,1733277041022,-113.39302569,0.00030046,2]
[344113187,1733277042081,-795.68297431,0.00030046,2]
[344113190,1733277042093,-2210.26343782,0.00030135,2]
[344113192,1733277042107,-589.15714935,0.00030136,7]
[344113194,1733277042116,-500.0,0.00030136,7]
[344113196,1733277042126,-500.0,0.00030136,7]
[344113198,1733277042135,-2547.43,0.00030136,7]
[344113200,1733277042146,-500.0,0.00030136,7]
[344113202,1733277042156,-2547.43,0.00030136,7]
[344113204,1733277042166,-304.98,0.00030136,7]
[344113206,1733277042180,-1883.10104752,0.00030136,7]
[344113208,1733277042194,-664.32895248,0.00030136,7]
[344113210,1733277042203,-1352.00535508,0.00030136,7]
[344113213,1733277042217,-1195.42464492,0.00030136,7]
[344113215,1733277042226,-2547.43,0.00030136,7]
[344113217,1733277042236,-2547.43,0.00030136,7]
[344113219,1733277042246,-2547.43,0.00030136,7]
[344113221,1733277042256,-2547.43,0.00030136,7]
[344113223,1733277042267,-2547.43,0.00030136,7]
[344113225,1733277042278,-2547.43,0.00030136,7]
[344113227,1733277042287,-2547.43,0.00030136,7]
[344113229,1733277042297,-2547.43,0.00030136,7]
[344113231,1733277042307,-2547.43,0.00030136,7]
[344113233,1733277042317,-2547.43,0.00030136,7]
[344113235,1733277042327,-2547.43,0.00030136,7]
[344113237,1733277042336,-2547.43,0.00030136,7]
[344113239,1733277042346,-2547.43,0.00030136,7]
[344113241,1733277042356,-2547.43,0.00030136,7]
[344113243,1733277042366,-2547.43,0.00030136,7]
[344113246,1733277042376,-2547.61597329,0.00030136,7]
[344113248,1733277042385,-500.0,0.00030136,7]
[344113250,1733277042395,-500.0,0.00030136,7]
[344113253,1733277042404,-500.0,0.00030136,7]
[344113255,1733277042414,-500.0,0.00030136,7]
[344113257,1733277042423,-582.04759453,0.00030136,7]
[344113259,1733277042432,-500.0,0.00030136,7]
[344113262,1733277042441,-500.0,0.00030136,7]
[344113265,1733277042451,-500.0,0.00030136,7]
[344113268,1733277042462,-500.0,0.00030136,7]
[344113270,1733277042471,-335.72126292,0.00030136,7]
[344113272,1733277042480,-500.0,0.00030136,7]
[344113274,1733277042490,-500.0,0.00030136,7]
[344113276,1733277042500,-500.0,0.00030136,7]
[344113278,1733277042509,-500.0,0.00030136,7]
[344113280,1733277042518,-500.0,0.00030136,7]
[344113282,1733277042528,-500.0,0.00030136,2]
[344113284,1733277042537,-500.0,0.00030136,7]
[344113286,1733277042546,-500.0,0.00030136,2]
[344113288,1733277042555,-500.0,0.00030136,7]
[344113290,1733277042564,-500.0,0.00030136,7]
[344113293,1733277042574,-500.0,0.00030136,7]
[344113296,1733277042583,-500.0,0.00030136,7]
[344113299,1733277042592,-500.0,0.00030136,7]
[344113302,1733277042602,-500.0,0.00030136,7]
[344113304,1733277042611,-500.0,0.00030136,7]
[344113307,1733277042620,-500.0,0.00030136,7]
[344113310,1733277042630,-500.0,0.00030136,7]
[344113312,1733277042640,-1170.9,0.00030136,7]
[344113314,1733277042650,-1170.9,0.00030136,7]
[344113316,1733277042659,-704.73595685,0.00030136,7]
[344113369,1733277043195,-2661.05,0.00030126,10]
[344113371,1733277043206,-466.16404315,0.00030136,7]
[344113373,1733277043223,-1170.9,0.00030136,7]
[344113375,1733277043234,-1170.9,0.00030136,7]
[344113377,1733277043246,-1170.9,0.00030136,7]
[344113379,1733277043257,-1170.9,0.00030136,7]
[344113381,1733277043268,-1170.9,0.00030136,7]
[344113383,1733277043279,-1170.9,0.00030136,7]
[344113385,1733277043291,-1170.9,0.00030136,7]
[344113387,1733277043301,-1170.9,0.00030136,7]
[344113389,1733277043312,-500.0,0.00030136,7]
[344113391,1733277043323,-1170.9,0.00030136,7]
[344113393,1733277043334,-1170.9,0.00030136,7]
[344113395,1733277043344,-500.0,0.00030136,7]
[344113397,1733277043354,-1170.9,0.00030136,7]
[344113399,1733277043363,-500.0,0.00030136,7]
[344113401,1733277043372,-1170.9,0.00030136,7]
[344113403,1733277043381,-500.0,0.00030136,7]
[344113405,1733277043391,-500.0,0.00030136,7]
[344113407,1733277043400,-1170.9,0.00030136,7]
[344113409,1733277043409,-1170.9,0.00030136,7]
[344113411,1733277043418,-1170.9,0.00030136,7]
[344113413,1733277043428,-1170.9,0.00030136,7]
[344113415,1733277043437,-1170.9,0.00030136,7]
[344113417,1733277043446,-1170.9,0.00030136,7]
[344113419,1733277043456,-1170.9,0.00030136,7]
[344113421,1733277043468,-1170.9,0.00030136,7]
[344113423,1733277043477,-1171.13848311,0.00030136,7]
[344113425,1733277043486,-500.0,0.00030136,2]
[344113427,1733277043495,-437.38448068,0.00030136,7]
[344113429,1733277043505,-500.0,0.00030136,2]
[344113431,1733277043514,-500.0,0.00030136,7]
[344113433,1733277043523,-500.0,0.00030136,7]
[344113435,1733277043533,-500.0,0.00030136,7]
[344113437,1733277043542,-500.0,0.00030136,7]
[344113439,1733277043551,-387.29971491,0.00030136,7]
[344113441,1733277043561,-500.0,0.00030136,7]
[344113443,1733277043570,-500.0,0.00030136,7]
[344113444,1733277043579,-500.0,0.00030136,7]
[344113445,1733277043588,-625.96,0.00030136,7]
[344113446,1733277043601,-500.0,0.00030136,7]
[344113447,1733277043611,-500.0,0.00030136,7]
[344113448,1733277043620,-639.22158329,0.00030136,7]
[344113449,1733277043629,-503.72042565,0.00030136,7]
[344113450,1733277043638,-1253.80693953,0.00030136,7]
[344113451,1733277043667,-14.53327616,0.00030136,7]
[344113452,1733277043680,-948.80978431,0.00030136,7]
[344113453,1733277043690,-500.0,0.00030136,7]
[344113454,1733277043699,-2217.15,0.00030136,7]
[344113455,1733277043708,-2217.15,0.00030136,7]
[344113456,1733277043719,-2217.15,0.00030136,7]
[344113457,1733277043728,-500.0,0.00030136,7]
[344113458,1733277043737,-2217.15,0.00030136,7]
[344113459,1733277043747,-500.0,0.00030136,7]
[344113460,1733277043757,-2217.15,0.00030136,7]
[344113461,1733277043766,-521.47668039,0.00030136,7]
[344113462,1733277043776,-2217.15,0.00030136,7]
[344113463,1733277043785,-500.0,0.00030136,7]
[344113464,1733277043795,-2217.15,0.00030136,7]
[344113465,1733277043805,-2217.15,0.00030136,7]
[344113466,1733277043816,-2217.15,0.00030136,7]
[344113467,1733277043826,-2217.15,0.00030136,7]
[344113468,1733277043836,-991.0243506,0.00030136,7]
[344113469,1733277043850,-501.37084775,0.00030136,7]
[344113470,1733277043862,-724.75480165,0.00030136,7]
[344113471,1733277043871,-433.95008647,0.00030136,7]
[344113472,1733277043883,-1783.19991353,0.00030136,7]
[344113474,1733277043892,-2217.15,0.00030136,7]
[344113476,1733277043902,-2217.15,0.00030136,7]
[344113478,1733277043911,-2217.15,0.00030136,7]
[344113480,1733277043920,-2217.15,0.00030136,7]
[344113482,1733277043929,-500.0,0.00030136,7]
[344113484,1733277043938,-506.64296357,0.00030136,7]
[344113486,1733277043949,-484.37463426,0.00030136,7]
[344113685,1733277045910,-347.56382516,0.00030136,7]
[344113716,1733277046189,-1385.21154058,0.00030136,7]
[344113718,1733277046201,-2217.15,0.00030136,7]
[344113720,1733277046215,-2217.15,0.00030136,7]
[344113722,1733277046227,-500.0,0.00030136,7]
[344113725,1733277046238,-2217.15,0.00030136,7]
[344113727,1733277046248,-501.05951971,0.00030136,7]
[344113729,1733277046258,-2217.15,0.00030136,7]
[344113731,1733277046268,-2217.15,0.00030136,7]
[344113733,1733277046280,-2217.3500871,0.00030136,7]
[344113735,1733277046291,-500.0,0.00030136,7]
[344113738,1733277046302,-500.0,0.00030136,7]
[344113740,1733277046313,-500.0,0.00030136,7]
[344113742,1733277046325,-500.0,0.00030136,7]
[344113744,1733277046337,-500.0,0.00030136,7]
[344113747,1733277046348,-500.0,0.00030136,7]
[344113749,1733277046359,-500.0,0.00030136,7]
[344113751,1733277046371,-500.0,0.00030136,7]
[344113753,1733277046384,-500.0,0.00030136,7]
[344113756,1733277046395,-183.93192261,0.00030136,7]
[344114557,1733277337628,168.410377,0.00013973,2]
[344114792,1733277821743,-1000.0,0.00030136,120]
[344114795,1733277920981,165.4503211,0.00013973,2]
[344114797,1733277956094,-48769.97537822,0.00025,2]
[344114798,1733277972618,-706.2472893,0.00030136,120]
[344114799,1733278033233,-300.0,0.00024999,2]
[344114800,1733278033255,-300.0,0.00024999,2]
[344114801,1733278033275,-136.47144361,0.00025,2]
[344114802,1733278038127,-536.929173,0.00025,2]
[344114803,1733278043106,-1400.85164328,0.00025,2]
[344114804,1733278044095,-4543.31016848,0.00025,2]
[344114809,1733278146122,-300.0,0.00024999,2]
[344114810,1733278146143,-300.0,0.00024999,2]
[344114811,1733278146164,-382.80845305,0.00025,2]
[344114812,1733278152101,-8706.39579384,0.00025,2]
[344114813,1733278152125,-9064.0,0.00025,2]
[344114814,1733278152147,-189.63974055,0.00025205,2]
[344114815,1733278152170,-24217.93499237,0.00026465,2]
[344114817,1733278167102,-682.06500763,0.00026465,2]
[344114818,1733278167124,-340.4069188,0.00026762,2]
[344114819,1733278167148,-709.5845803,0.00027058,2]
[344114820,1733278167169,-420.0,0.00027082,2]
[344114821,1733278167194,-345.928748,0.00027395,2]
[344114822,1733278167215,-500.0,0.00027397,2]
[344114823,1733278167237,-420.0,0.00027499,2]
[344114824,1733278167259,-224.561,0.00027538,2]
[344114825,1733278167280,-156.5242633,0.00027567,2]
[344114826,1733278189657,172.964374,0.00027124,2]
[344114827,1733278202760,663.12773841,0.00024953,2]
[344114890,1733278232325,-172.48991593,0.00028692,2]
[344114892,1733278232334,-168.904,0.00028791,20]
[344114894,1733278232344,-155.07621316,0.00028946,2]
[344114896,1733278232353,-172.48991587,0.00029036,2]
[344114898,1733278232362,-172.48991587,0.00029381,2]
[344114900,1733278232371,-172.48991587,0.00029725,2]
[344114902,1733278232380,-604.1231479,0.00029889,2]
[344114904,1733278232390,-300.0,0.00029999,2]
[344114906,1733278232399,-300.0,0.00029999,2]
[344114908,1733278232409,-164.622,0.0003,2]
[344114910,1733278232418,-165.0,0.0003,2]
[344114912,1733278232430,-300.0,0.0003,2]
[344114913,1733278232441,-300.0,0.0003,2]
[344114914,1733278232450,-404.8,0.0003,2]
[344114915,1733278232460,-6666.0,0.00030036,2]
[344114916,1733278232470,-666.0,0.00030036,2]
[344114917,1733278232480,-1339.27777602,0.00030036,2]
[344114918,1733278232489,-179.911,0.00030046,2]
[344114919,1733278232676,-150.0,0.00030046,2]
[344114920,1733278232697,-250.489,0.00030046,2]
[344114921,1733278232706,-150.0,0.00030046,2]
[344114922,1733278232716,-532.0,0.00030046,2]
[344114923,1733278232725,-2172.0,0.00030046,2]
[344114924,1733278232735,-2376.0,0.00030046,2]
[344114925,1733278232744,-293.7527107,0.00030055,30]
[344114926,1733278232754,-172.48991587,0.00030069,2]
[344114927,1733278232763,-3000.0,0.000301,2]
[344114928,1733278232773,-3000.0,0.0003011,2]
[344114929,1733278232782,-3000.0,0.0003012,2]
[344114930,1733278232791,-500.0,0.00030125,2]
[344114931,1733278232800,-2296.44,0.00030126,10]
[344114932,1733278232810,-1913.7,0.00030126,10]
[344114933,1733278232819,-3000.0,0.0003013,3]
[344114934,1733278232829,-2210.26343783,0.00030135,2]
[344114935,1733278232840,-500.0,0.00030135,2]
[344114936,1733278232849,-500.0,0.00030135,2]
[344114937,1733278232858,-500.0,0.00030135,2]
[344114938,1733278232867,-332.33550213,0.00030135,2]
[344114939,1733278232878,-500.0,0.00030135,2]
[344114940,1733278232887,-500.0,0.00030135,2]
[344114941,1733278232896,-500.0,0.00030135,2]
[344114942,1733278232906,-500.0,0.00030135,2]
[344114943,1733278232916,-253.40840893,0.00030135,2]
[344114944,1733278232925,-500.0,0.00030135,2]
[344114945,1733278232936,-500.0,0.00030135,2]
[344114946,1733278232946,-386.62442838,0.00030135,2]
[344114947,1733278232955,-52107.55178652,0.00030136,2]
[344114948,1733278232964,-472.93000845,0.00030136,7]
[344114949,1733278232974,-316.06807739,0.00030136,7]
[344114950,1733278232983,-500.0,0.00030136,7]
[344114951,1733278232993,-169.32077357,0.00030136,7]
[344114952,1733278233002,-500.0,0.00030136,7]
[344114953,1733278233012,-500.0,0.00030136,7]
[344114954,1733278233022,-500.0,0.00030136,7]
[344114955,1733278233031,-543.36653134,0.00030136,7]
[344114956,1733278233041,-500.0,0.00030136,7]
[344114957,1733278233051,-500.0,0.00030136,7]
[344114958,1733278233061,-500.0,0.00030136,7]
[344114959,1733278233070,-508.07276939,0.00030136,7]
[344114960,1733278233080,-500.0,0.00030136,7]
[344114961,1733278233091,-500.0,0.00030136,7]
[344114962,1733278233101,-500.0,0.00030136,7]
[344114963,1733278233111,-500.0,0.00030136,7]
[344114964,1733278233120,-500.0,0.00030136,7]
[344114965,1733278233129,-500.0,0.00030136,7]
[344114966,1733278233138,-282.00048452,0.00030136,7]
[344114967,1733278233148,-500.0,0.00030136,7]
[344114968,1733278233157,-500.0,0.00030136,7]
[344114969,1733278233166,-500.0,0.00030136,7]
[344114970,1733278233175,-500.0,0.00030136,7]
[344114971,1733278233186,-500.0,0.00030136,7]
[344114972,1733278233196,-512.21432465,0.00030136,7]
[344114973,1733278233206,-500.0,0.00030136,7]
[344114974,1733278233215,-500.0,0.00030136,7]
[344114975,1733278233225,-306.316,0.00030136,7]
[344114976,1733278233234,-500.0,0.00030136,7]
[344114977,1733278233244,-500.0,0.00030136,7]
[344114978,1733278233253,-500.0,0.00030136,7]
[344114979,1733278233263,-537.36619142,0.00030136,7]
[344114980,1733278233274,-520.82679983,0.00030136,7]
[344114981,1733278233284,-500.0,0.00030136,7]
[344114982,1733278233293,-500.0,0.00030136,7]
[344114983,1733278233303,-594.3,0.00030136,7]
[344114984,1733278233312,-500.0,0.00030136,7]
[344114985,1733278233322,-508.48883939,0.00030136,7]
[344114986,1733278233332,-500.0,0.00030136,7]
[344114987,1733278233342,-513.20656209,0.00030136,7]
[344114988,1733278233352,-638.56145603,0.00030136,7]
[344114989,1733278233362,-500.0,0.00030136,7]
[344114990,1733278233372,-500.0,0.00030136,7]
[344114991,1733278233383,-500.0,0.00030136,7]
[344114992,1733278233393,-503.13600835,0.00030136,7]
[344114993,1733278233402,-500.0,0.00030136,7]
[344114994,1733278233412,-510.70584409,0.00030136,7]
[344114995,1733278233422,-500.0,0.00030136,7]
[344114996,1733278233433,-500.0,0.00030136,7]
[344114997,1733278233447,-500.0,0.00030136,7]
[344114998,1733278233458,-502.26649486,0.00030136,7]
[344114999,1733278233470,-500.0,0.00030136,7]
[344115000,1733278233485,-501.09810119,0.00030136,7]
[344115001,1733278233496,-502.2011137,0.00030136,7]
[344115002,1733278233506,-501.18397962,0.00030136,7]
[344115003,1733278233518,-500.0,0.00030136,2]
[344115004,1733278233527,-500.0,0.00030136,7]
[344115005,1733278233537,-500.0,0.00030136,2]
[344115006,1733278233547,-500.0,0.00030136,7]
[344115007,1733278233560,-500.0,0.00030136,7]
[344115008,1733278233571,-482.30206029,0.00030136,5]
[344115009,1733278233581,-500.0,0.00030136,7]
[344115010,1733278233591,-500.0,0.00030136,7]
[344115011,1733278233600,-180.38365568,0.00030136,7]
[344115012,1733278233609,-500.0,0.00030136,7]
[344115013,1733278233619,-500.90628803,0.00030136,7]
[344115014,1733278233629,-501.43293974,0.00030136,7]
[344115015,1733278233638,-500.0,0.00030136,7]
[344115016,1733278233648,-501.26843908,0.00030136,7]
[344115017,1733278233658,-502.3823761,0.00030136,7]
[344115018,1733278233668,-503.64600564,0.00030136,7]
[344115019,1733278233677,-536.99564545,0.00030136,7]
[344115020,1733278233689,-500.0,0.00030136,7]
[344115021,1733278233699,-334.31796617,0.00030136,7]
[344115022,1733278233709,-500.0,0.00030136,7]
[344115023,1733278233718,-500.0,0.00030136,7]
[344115024,1733278233727,-500.0,0.00030136,7]
[344115025,1733278233745,-500.0,0.00030136,7]
[344115026,1733278233757,-500.0,0.00030136,7]
[344115027,1733278233767,-501.64626552,0.00030136,7]
[344115028,1733278233777,-600.60822193,0.00030136,7]
[344115029,1733278233787,-505.63593723,0.00030136,7]
[344115030,1733278233797,-503.56149404,0.00030136,7]
[344115031,1733278233807,-500.0,0.00030136,7]
[344115032,1733278233816,-500.0,0.00030136,7]
[344115033,1733278233826,-638.54,0.00030136,7]
[344115034,1733278233836,-500.73962808,0.00030136,7]
[344115035,1733278233846,-547.32192831,0.00030136,7]
[344115036,1733278233855,-500.0,0.00030136,7]
[344115037,1733278233865,-580.40532694,0.00030136,7]
[344115038,1733278233875,-542.00922101,0.00030136,2]
[344115039,1733278233885,-500.0,0.00030136,7]
[344115040,1733278233895,-513.53561806,0.00030136,7]
[344115041,1733278233904,-501.46420949,0.00030136,7]
[344115042,1733278233914,-500.0,0.00030136,7]
[344115043,1733278233924,-500.0,0.00030136,7]
[344115044,1733278233936,-500.0,0.00030136,7]
[344115045,1733278233946,-500.0,0.00030136,7]
[344115046,1733278233955,-500.0,0.00030136,7]
[344115047,1733278233965,-500.0,0.00030136,7]
[344115048,1733278233976,-502.12711322,0.00030136,7]
[344115049,1733278233986,-500.0,0.00030136,7]
[344115050,1733278233996,-501.90531019,0.00030136,7]
[344115051,1733278234005,-261.88102788,0.00030136,7]
[344115052,1733278234015,-500.0,0.00030136,7]
[344115053,1733278234024,-174.13735007,0.00030136,7]
[344115054,1733278234033,-500.0,0.00030136,7]
[344115055,1733278234043,-503.25311614,0.00030136,7]
[344115056,1733278234051,-500.0,0.00030136,7]
[344115057,1733278234060,-500.0,0.00030136,7]
[344115058,1733278234070,-502.48691141,0.00030136,7]
[344115059,1733278234079,-500.0,0.00030136,7]
[344115060,1733278234089,-500.0,0.00030136,7]
[344115061,1733278234099,-500.0,0.00030136,7]
[344115062,1733278234108,-500.0,0.00030136,7]
[344115063,1733278234117,-500.0,0.00030136,7]
[344115064,1733278234127,-500.0,0.00030136,7]
[344115065,1733278234136,-501.68687311,0.00030136,7]
[344115066,1733278234146,-529.67353683,0.00030136,7]
[344115067,1733278234156,-500.0,0.00030136,7]
[344115068,1733278234165,-500.0,0.00030136,7]
[344115069,1733278234175,-500.0,0.00030136,7]
[344115070,1733278234185,-506.04755427,0.00030136,7]
[344115071,1733278234196,-500.0,0.00030136,7]
[344115072,1733278234205,-500.0,0.00030136,7]